[Event "44th Chess Olympiad Women 2022"]
[Site "Chennai"]
[Date "2022.08.01"]
[Round "4.14"]
[White "Sim, Jia Ru"]
[Black "Kalaiyalahan, Akshaya"]
[Result "0-1"]
[WhiteElo "2005"]
[BlackElo "2158"]
[Annotator "NA RC"]
[PlyCount "110"]
[EventDate "2022.??.??"]
[TimeControl "60"]

1. e4 {[%emt 0:00:04]} c5 {[%emt 0:00:04]} 2. Nf3 {[%emt 0:00:08]} e6 {[%emt 0:
00:00]} 3. c3 {[%emt 0:00:09]} d5 {[%emt 0:00:09]} 4. exd5 {[%emt 0:00:11]}
Qxd5 {[%emt 0:00:05]} 5. d4 {[%emt 0:00:13]} Nf6 {[%emt 0:00:13]} 6. Be2 {
[%emt 0:00:22]} cxd4 {[%emt 0:00:25]} 7. cxd4 {[%emt 0:00:11]} Nc6 {[%emt 0:00:
00]} 8. Nc3 {[%emt 0:01:37]} Qd6 {[%emt 0:00:26]} 9. O-O {[%emt 0:02:49]} Be7 {
[%emt 0:00:08]} 10. Nb5 {[%emt 0:02:41]} Qd8 {[%emt 0:00:15]} 11. Bf4 {[%emt 0:
00:00]} Nd5 {[%emt 0:00:11]} 12. Bg3 {[%emt 0:00:22]} a6 {[%emt 0:01:21]} 13.
Nc3 {[%emt 0:00:31]} O-O {[%emt 0:00:47]} 14. Rc1 {[%emt 0:08:33]} Nf6 {
[%emt 0:15:21]} 15. Qd2 {[%emt 0:13:26]} Nb4 {[%emt 0:05:02]} 16. Ne5 {[%emt 0:
00:00]} Nbd5 {[%emt 0:04:34]} 17. Bf3 {[%emt 0:05:00]} Bb4 {[%emt 0:01:55]} 18.
Qc2 {[%emt 0:05:23]} Ne7 {[%emt 0:04:27]} 19. Qb3 {[%emt 0:09:14]} Bd6 {
[%emt 0:01:59]} 20. Rfd1 {[%emt 0:04:40]} Nf5 {[%emt 0:06:24]} 21. Na4 {
[%emt 0:01:48]} Nxg3 {[%emt 0:02:13]} 22. hxg3 {[%emt 0:00:12]} Rb8 {[%emt 0:
00:00]} 23. Nb6 {[%emt 0:03:26]} Bd7 {[%emt 0:01:56]} 24. Nec4 {[%emt 0:04:37]}
Bb5 {[%emt 0:01:51]} 25. d5 {[%emt 0:02:21]} Bxc4 {[%emt 0:02:02]} 26. Nxc4 {
[%emt 0:01:58]} e5 {[%emt 0:00:27]} 27. Nd2 {[%emt 0:03:54]} Ne8 {[%emt 0:00:
00]} 28. g4 {[%emt 0:01:50]} g6 {[%emt 0:04:44]} 29. Qe3 {[%emt 0:02:47]} f5 {
[%emt 0:01:21]} 30. gxf5 {[%emt 0:02:41]} gxf5 {[%emt 0:00:10]} 31. Nc4 {
[%emt 0:00:56]} Qf6 {[%emt 0:07:04]} 32. Bh5 {[%emt 0:02:36]} Ng7 {[%emt 0:00:
00]} 33. Be2 {[%emt 0:00:13]} Ne8 {[%emt 0:06:26]} 34. Nxd6 {[%emt 0:02:01]}
Nxd6 {[%emt 0:00:48]} 35. Rc7 {[%emt 0:03:20]} Rbe8 {[%emt 0:01:01]} 36. Qh3 {
[%emt 0:02:16]} Re7 {[%emt 0:00:13]} 37. Rdc1 {[%emt 0:01:51]} Rff7 {[%emt 0:
00:00]} 38. R7c2 {[%emt 0:02:34]} h6 {[%emt 0:02:10]} 39. g3 {[%emt 0:03:12]}
Rg7 {[%emt 0:01:25]} 40. Kg2 {[%emt 0:02:30]} e4 {[%emt 0:03:41]} 41. Rc3 {
[%emt 0:04:17]} Qg5 {[%emt 0:13:17]} 42. Qh5 {[%emt 0:05:59]} f4 {[%emt 0:00:
00]} 43. Qxg5 {[%emt 0:03:28]} f3+ {[%emt 0:01:38]} 44. Kg1 {[%emt 0:01:57]}
hxg5 {[%emt 0:01:37]} 45. Bxf3 {[%emt 0:00:31]} exf3 {[%emt 0:00:05]} 46. Rxf3
{[%emt 0:00:06]} Rgf7 {[%emt 0:00:34]} 47. Rb3 {[%emt 0:04:47]} Re5 {[%emt 0:
00:00]} 48. Rd1 {[%emt 0:03:13]} Re2 {[%emt 0:04:50]} 49. Rb6 {[%emt 0:01:10]}
Rf6 {[%emt 0:00:04]} 50. Rc1 {[%emt 0:01:31]} Rd2 {[%emt 0:00:14]} 51. Rc5 {
[%emt 0:02:32]} g4 {[%emt 0:08:34]} 52. Rc8+ {[%emt 0:02:52]} Kf7 {[%emt 0:00:
00]} 53. Rc7+ {[%emt 0:00:38]} Ke8 {[%emt 0:00:24]} 54. Rcxb7 {[%emt 0:00:34]}
Rdxf2 {[%emt 0:00:30]} 55. Rb8+ {[%emt 0:01:19]} Kd7 {[%emt 0:00:17]} 0-1

[Event "44th Chess Olympiad Women 2022"]
[Site "Chennai"]
[Date "2022.08.01"]
[Round "4.14"]
[White "Varney, Zoe"]
[Black "Chong, Kai Ni Agnes"]
[Result "1/2-1/2"]
[WhiteElo "2045"]
[BlackElo "1909"]
[Annotator "NA RC"]
[PlyCount "96"]
[EventDate "2022.??.??"]
[TimeControl "60"]

1. e4 {[%emt 0:00:04]} c5 {[%emt 0:00:08]} 2. Nc3 {[%emt 0:00:06]} e6 {[%emt 0:
00:00]} 3. f4 {[%emt 0:01:01]} Nc6 {[%emt 0:00:27]} 4. Nf3 {[%emt 0:00:17]} d5
{[%emt 0:00:23]} 5. Bb5 {[%emt 0:06:02]} dxe4 {[%emt 0:07:07]} 6. Bxc6+ {
[%emt 0:02:31]} bxc6 {[%emt 0:00:09]} 7. Nxe4 {[%emt 0:01:22]} Nf6 {[%emt 0:00:
00]} 8. d3 {[%emt 0:09:49]} Be7 {[%emt 0:15:32]} 9. Ne5 {[%emt 0:12:17]} Qb6 {
[%emt 0:03:25]} 10. Nc4 {[%emt 0:05:45]} Qc7 {[%emt 0:01:54]} 11. Qf3 {[%emt 0:
00:00]} Ba6 {[%emt 0:06:11]} 12. O-O {[%emt 0:08:24]} Rd8 {[%emt 0:04:33]} 13.
Be3 {[%emt 0:08:06]} Rd5 {[%emt 0:09:06]} 14. Rae1 {[%emt 0:10:49]} h5 {
[%emt 0:06:07]} 15. h3 {[%emt 0:08:32]} h4 {[%emt 0:02:07]} 16. Ne5 {[%emt 0:
00:00]} Nxe4 {[%emt 0:12:40]} 17. Qxe4 {[%emt 0:03:48]} Rh5 {[%emt 0:07:50]}
18. c4 {[%emt 0:02:26]} Rd8 {[%emt 0:02:09]} 19. f5 {[%emt 0:01:20]} Bc8 {
[%emt 0:04:45]} 20. fxe6 {[%emt 0:04:46]} Bxe6 {[%emt 0:04:54]} 21. Nxc6 {
[%emt 0:00:12]} Rd7 {[%emt 0:03:17]} 22. Nxe7 {[%emt 0:00:04]} Rxe7 {[%emt 0:
00:00]} 23. Bf4 {[%emt 0:00:56]} Qd7 {[%emt 0:01:02]} 24. Qa8+ {[%emt 0:00:16]}
Qd8 {[%emt 0:00:08]} 25. Qc6+ {[%emt 0:01:19]} Qd7 {[%emt 0:00:25]} 26. Qa8+ {
[%emt 0:00:16]} Qd8 {[%emt 0:00:07]} 27. Qc6+ {[%emt 0:00:35]} Qd7 {[%emt 0:00:
00]} 28. Qf3 {[%emt 0:00:04]} Rf5 {[%emt 0:01:25]} 29. Qa8+ {[%emt 0:00:32]}
Qd8 {[%emt 0:00:21]} 30. Qc6+ {[%emt 0:00:05]} Qd7 {[%emt 0:01:00]} 31. Qa8+ {
[%emt 0:00:03]} Qc8 {[%emt 0:01:20]} 32. Qe4 {[%emt 0:01:19]} Qd7 {[%emt 0:00:
00]} 33. b3 {[%emt 0:01:12]} Qd4+ {[%emt 0:03:06]} 34. Kh1 {[%emt 0:00:39]}
Qxe4 {[%emt 0:00:37]} 35. dxe4 {[%emt 0:00:10]} Rh5 {[%emt 0:00:11]} 36. Bd6 {
[%emt 0:00:06]} Rd7 {[%emt 0:00:16]} 37. e5 {[%emt 0:00:03]} Rg5 {[%emt 0:00:
00]} 38. Bxc5 {[%emt 0:00:19]} Rd3 {[%emt 0:00:10]} 39. Be3 {[%emt 0:00:54]}
Rxe5 {[%emt 0:00:30]} 40. Bxa7 {[%emt 0:00:17]} Ra5 {[%emt 0:00:21]} 41. Bf2 {
[%emt 0:13:20]} Rxa2 {[%emt 0:00:58]} 42. Bxh4 {[%emt 0:09:32]} Rxb3 {[%emt 0:
00:00]} 43. Rf2 {[%emt 0:02:20]} Rbb2 {[%emt 0:04:11]} 44. Rd1 {[%emt 0:02:03]}
f6 {[%emt 0:00:51]} 45. Rxb2 {[%emt 0:01:12]} Rxb2 {[%emt 0:00:06]} 46. c5 {
[%emt 0:02:40]} Rc2 {[%emt 0:00:25]} 47. Rd6 {[%emt 0:00:17]} Ke7 {[%emt 0:00:
00]} 48. Bg3 {[%emt 0:01:41]} Rxc5 {[%emt 0:00:09]} 1/2-1/2

[Event "44th Chess Olympiad Women 2022"]
[Site "Chennai"]
[Date "2022.08.01"]
[Round "4.14"]
[White "Yao, Lan"]
[Black "Azhar, Puteri Munajjah Az-"]
[Result "1-0"]
[WhiteElo "2274"]
[BlackElo "2018"]
[Annotator "NA RC"]
[PlyCount "69"]
[EventDate "2022.??.??"]
[TimeControl "60"]

1. e4 {[%emt 0:00:02]} c5 {[%emt 0:00:08]} 2. Nf3 {[%emt 0:00:06]} d6 {[%emt 0:
00:00]} 3. d4 {[%emt 0:00:04]} cxd4 {[%emt 0:00:06]} 4. Nxd4 {[%emt 0:00:03]}
Nf6 {[%emt 0:00:07]} 5. Nc3 {[%emt 0:00:05]} a6 {[%emt 0:00:05]} 6. Bg5 {
[%emt 0:00:10]} e6 {[%emt 0:00:16]} 7. f4 {[%emt 0:00:05]} Be7 {[%emt 0:00:12]}
8. Qf3 {[%emt 0:00:04]} Qc7 {[%emt 0:07:56]} 9. O-O-O {[%emt 0:00:18]} Nbd7 {
[%emt 0:01:16]} 10. Qg3 {[%emt 0:01:06]} O-O {[%emt 0:48:29]} 11. Be2 {[%emt 0:
00:00]} b5 {[%emt 0:01:33]} 12. Bf3 {[%emt 0:06:14]} Nb6 {[%emt 0:12:03]} 13.
e5 {[%emt 0:05:10]} Nfd5 {[%emt 0:00:09]} 14. Nxd5 {[%emt 0:12:09]} exd5 {
[%emt 0:00:41]} 15. Bf6 {[%emt 0:05:50]} g6 {[%emt 0:01:52]} 16. Qg5 {[%emt 0:
00:00]} Re8 {[%emt 0:01:03]} 17. h4 {[%emt 0:06:47]} dxe5 {[%emt 0:05:41]} 18.
fxe5 {[%emt 0:00:27]} Bxf6 {[%emt 0:10:01]} 19. exf6 {[%emt 0:00:06]} Qe5 {
[%emt 0:00:06]} 20. Qxe5 {[%emt 0:01:04]} Rxe5 {[%emt 0:00:07]} 21. Nc6 {
[%emt 0:00:05]} Re6 {[%emt 0:00:35]} 22. Ne7+ {[%emt 0:00:12]} Kf8 {[%emt 0:00:
00]} 23. Nxd5 {[%emt 0:13:24]} Rb8 {[%emt 0:02:27]} 24. Nc7 {[%emt 0:03:10]}
Rxf6 {[%emt 0:00:34]} 25. Rd8+ {[%emt 0:00:15]} Ke7 {[%emt 0:00:57]} 26. Rhd1 {
[%emt 0:00:19]} Rxf3 {[%emt 0:02:21]} 27. gxf3 {[%emt 0:01:04]} Rb7 {[%emt 0:
00:00]} 28. Re8+ {[%emt 0:02:50]} Kf6 {[%emt 0:00:15]} 29. Rd6+ {[%emt 0:01:22]
} Kg7 {[%emt 0:00:08]} 30. Nxa6 {[%emt 0:07:54]} Nc4 {[%emt 0:00:15]} 31. Rdd8
{[%emt 0:02:47]} Bf5 {[%emt 0:01:13]} 32. b3 {[%emt 0:01:01]} Na5 {[%emt 0:00:
00]} 33. Rb8 {[%emt 0:03:04]} Ra7 {[%emt 0:00:36]} 34. Nb4 {[%emt 0:00:45]} Rc7
{[%emt 0:02:24]} 35. Rg8+ {[%emt 0:02:05]} 1-0

[Event "44th Chess Olympiad Women 2022"]
[Site "Chennai"]
[Date "2022.08.01"]
[Round "4.15"]
[White "Borosova, Zuzana"]
[Black "Khegay, Anjela"]
[Result "1/2-1/2"]
[WhiteElo "2277"]
[BlackElo "2131"]
[Annotator "NA RC"]
[PlyCount "79"]
[EventDate "2022.??.??"]
[TimeControl "60"]

1. e4 {[%emt 0:00:04]} g6 {[%emt 0:00:06]} 2. d4 {[%emt 0:00:06]} Bg7 {[%emt 0:
00:00]} 3. Nf3 {[%emt 0:00:13]} d6 {[%emt 0:00:04]} 4. Bc4 {[%emt 0:00:17]} Nf6
{[%emt 0:00:46]} 5. Qe2 {[%emt 0:00:09]} Bg4 {[%emt 0:00:32]} 6. e5 {[%emt 0:
00:00]} dxe5 {[%emt 0:02:25]} 7. Bxf7+ {[%emt 0:01:01]} Kxf7 {[%emt 0:00:03]}
8. Nxe5+ {[%emt 0:00:14]} Kf8 {[%emt 0:00:02]} 9. Nxg4 {[%emt 0:00:27]} Qxd4 {
[%emt 0:02:55]} 10. Nxf6 {[%emt 0:07:14]} Bxf6 {[%emt 0:00:54]} 11. O-O {
[%emt 0:04:42]} Kg7 {[%emt 0:03:45]} 12. Nc3 {[%emt 0:02:23]} Nc6 {[%emt 0:00:
00]} 13. Ne4 {[%emt 0:12:28]} Qe5 {[%emt 0:09:39]} 14. c3 {[%emt 0:04:12]} h5 {
[%emt 0:06:53]} 15. Be3 {[%emt 0:19:37]} b6 {[%emt 0:16:07]} 16. Rfe1 {[%emt 0:
00:00]} h4 {[%emt 0:08:30]} 17. Qc4 {[%emt 0:13:49]} Na5 {[%emt 0:03:06]} 18.
Qa4 {[%emt 0:00:22]} Qf5 {[%emt 0:00:30]} 19. Nxf6 {[%emt 0:02:53]} exf6 {
[%emt 0:00:05]} 20. Bf4 {[%emt 0:03:37]} g5 {[%emt 0:09:31]} 21. Bxc7 {[%emt 0:
00:00]} h3 {[%emt 0:02:28]} 22. Re7+ {[%emt 0:06:45]} Kg6 {[%emt 0:00:20]} 23.
g4 {[%emt 0:02:39]} Qf3 {[%emt 0:03:48]} 24. Qc2+ {[%emt 0:00:11]} Kh6 {
[%emt 0:00:06]} 25. Qe4 {[%emt 0:00:03]} Qxe4 {[%emt 0:00:29]} 26. Rxe4 {
[%emt 0:00:01]} Rac8 {[%emt 0:01:31]} 27. Bg3 {[%emt 0:00:20]} Nc4 {[%emt 0:00:
00]} 28. Re2 {[%emt 0:02:26]} Rhd8 {[%emt 0:08:23]} 29. f4 {[%emt 0:01:35]} Rd2
{[%emt 0:04:58]} 30. Rxd2 {[%emt 0:00:47]} Nxd2 {[%emt 0:00:02]} 31. Kf2 {
[%emt 0:00:28]} Ne4+ {[%emt 0:01:44]} 32. Kf3 {[%emt 0:00:16]} Nxg3 {[%emt 0:
00:00]} 33. Kxg3 {[%emt 0:00:46]} gxf4+ {[%emt 0:00:22]} 34. Kxf4 {[%emt 0:00:
00]} Rd8 {[%emt 0:00:12]} 35. Ke3 {[%emt 0:01:48]} Kg5 {[%emt 0:00:26]} 36. Rg1
{[%emt 0:00:17]} Re8+ {[%emt 0:00:38]} 37. Kf3 {[%emt 0:00:45]} Rd8 {[%emt 0:
00:00]} 38. Ke3 {[%emt 0:00:51]} Re8+ {[%emt 0:00:05]} 39. Kf3 {[%emt 0:00:20]}
Rd8 {[%emt 0:00:02]} 40. Ke4 {[%emt 0:00:47]} 1/2-1/2

[Event "44th Chess Olympiad Women 2022"]
[Site "Chennai"]
[Date "2022.08.01"]
[Round "4.15"]
[White "Fang, Kun"]
[Black "Mrvova, Alena"]
[Result "0-1"]
[WhiteElo "1766"]
[BlackElo "2165"]
[Annotator "NA RC"]
[PlyCount "96"]
[EventDate "2022.??.??"]
[TimeControl "60"]

1. e4 {[%emt 0:00:02]} c5 {[%emt 0:00:55]} 2. Nf3 {[%emt 0:00:04]} d6 {[%emt 0:
00:00]} 3. d4 {[%emt 0:00:04]} cxd4 {[%emt 0:00:30]} 4. Nxd4 {[%emt 0:00:05]}
Nf6 {[%emt 0:00:36]} 5. Nc3 {[%emt 0:00:13]} Nc6 {[%emt 0:01:18]} 6. Nb3 {
[%emt 0:02:07]} g6 {[%emt 0:02:47]} 7. Be2 {[%emt 0:00:12]} Bg7 {[%emt 0:00:33]
} 8. O-O {[%emt 0:00:18]} O-O {[%emt 0:00:51]} 9. Re1 {[%emt 0:00:21]} a6 {
[%emt 0:01:29]} 10. Bf1 {[%emt 0:03:34]} b5 {[%emt 0:01:34]} 11. Nd5 {[%emt 0:
00:00]} Be6 {[%emt 0:08:39]} 12. c3 {[%emt 0:05:48]} Ne5 {[%emt 0:02:02]} 13.
a4 {[%emt 0:10:28]} Bxd5 {[%emt 0:03:37]} 14. exd5 {[%emt 0:02:23]} Nc4 {
[%emt 0:01:48]} 15. Nd4 {[%emt 0:00:52]} Qd7 {[%emt 0:02:57]} 16. axb5 {
[%emt 0:14:26]} axb5 {[%emt 0:01:51]} 17. Rxa8 {[%emt 0:05:03]} Rxa8 {[%emt 0:
00:00]} 18. b3 {[%emt 0:00:16]} Nb6 {[%emt 0:03:31]} 19. Bxb5 {[%emt 0:01:10]}
Qc7 {[%emt 0:00:09]} 20. c4 {[%emt 0:08:08]} Ra1 {[%emt 0:02:32]} 21. Nc6 {
[%emt 0:03:45]} e5 {[%emt 0:08:06]} 22. dxe6 {[%emt 0:02:17]} fxe6 {[%emt 0:00:
00]} 23. Qe2 {[%emt 0:06:59]} e5 {[%emt 0:02:24]} 24. Qb2 {[%emt 0:09:03]} Ra8
{[%emt 0:00:19]} 25. Bd2 {[%emt 0:01:18]} Qf7 {[%emt 0:13:33]} 26. Bb4 {
[%emt 0:02:12]} Bf8 {[%emt 0:09:50]} 27. f3 {[%emt 0:02:02]} Nbd7 {[%emt 0:00:
00]} 28. Bc3 {[%emt 0:05:26]} Nc5 {[%emt 0:02:20]} 29. Rd1 {[%emt 0:01:07]} Ne6
{[%emt 0:04:16]} 30. Bb4 {[%emt 0:01:16]} Ne8 {[%emt 0:04:15]} 31. Ba4 {
[%emt 0:09:32]} Qc7 {[%emt 0:03:16]} 32. Bb5 {[%emt 0:01:24]} Rc8 {[%emt 0:00:
00]} 33. Ra1 {[%emt 0:01:00]} Qb6+ {[%emt 0:00:07]} 34. Qf2 {[%emt 0:00:05]}
Rxc6 {[%emt 0:00:06]} 35. Bxc6 {[%emt 0:02:44]} Qxc6 {[%emt 0:00:09]} 36. Ra7 {
[%emt 0:00:46]} Nd4 {[%emt 0:00:43]} 37. Ra3 {[%emt 0:01:05]} Qb6 {[%emt 0:00:
00]} 38. Ba5 {[%emt 0:00:13]} Qc5 {[%emt 0:00:26]} 39. b4 {[%emt 0:00:40]} Qxc4
{[%emt 0:00:09]} 40. Qa2 {[%emt 0:00:23]} d5 {[%emt 0:00:33]} 41. Qxc4 {
[%emt 0:30:42]} dxc4 {[%emt 0:30:25]} 42. Kf2 {[%emt 0:00:37]} Nb3 {[%emt 0:00:
00]} 43. Ra2 {[%emt 0:00:25]} Nd6 {[%emt 0:04:00]} 44. Rc2 {[%emt 0:00:00]} Nd4
{[%emt 0:00:00]} 45. Rc1 {[%emt 0:00:00]} Bh6 {[%emt 0:00:00]} 46. Re1 {
[%emt 0:00:00]} c3 {[%emt 0:00:00]} 47. Bc7 {[%emt 0:00:00]} Nc4 {[%emt 0:00:
00]} 48. g3 {[%emt 0:00:00]} Bd2 {[%emt 0:00:00]} 0-1

[Event "44th Chess Olympiad Women 2022"]
[Site "Chennai"]
[Date "2022.08.01"]
[Round "4.15"]
[White "Hagarova, Zuzana"]
[Black "Hng, Mei-Xian Eunice"]
[Result "1/2-1/2"]
[WhiteElo "2293"]
[BlackElo "1823"]
[Annotator "ChessBase"]
[PlyCount "113"]
[EventDate "2022.??.??"]
[TimeControl "60"]

1. e4 {[%emt 0:00:10]} d6 {[%emt 0:00:31]} 2. d4 {[%emt 0:00:37]} Nf6 {[%emt 0:
00:00]} 3. Nc3 {[%emt 0:00:27]} g6 {[%emt 0:00:18]} 4. Be3 {[%emt 0:01:31]} Bg7
{[%emt 0:00:54]} 5. h3 {[%emt 0:03:17]} O-O {[%emt 0:04:00]} 6. Nf3 {[%emt 0:
00:00]} Na6 {[%emt 0:06:01]} 7. Qd2 {[%emt 0:09:37]} c5 {[%emt 0:09:41]} 8.
O-O-O {[%emt 0:10:20]} cxd4 {[%emt 0:03:13]} 9. Nxd4 {[%emt 0:04:01]} Nc5 {
[%emt 0:03:57]} 10. f3 {[%emt 0:02:06]} a6 {[%emt 0:06:25]} 11. g4 {[%emt 0:00:
00]} b5 {[%emt 0:12:11]} 12. Bh6 {[%emt 0:06:01]} b4 {[%emt 0:08:12]} 13. Nd5 {
[%emt 0:02:41]} Nxd5 {[%emt 0:01:52]} 14. exd5 {[%emt 0:06:15]} Bxh6 {[%emt 0:
00:00]} 15. Qxh6 {[%emt 0:04:11]} e5 {[%emt 0:00:53]} 16. Nc6 {[%emt 0:11:43]}
Qf6 {[%emt 0:00:49]} 17. Qe3 {[%emt 0:02:10]} a5 {[%emt 0:03:38]} 18. g5 {
[%emt 0:02:49]} Qf4 {[%emt 0:08:07]} 19. Qxf4 {[%emt 0:07:06]} exf4 {[%emt 0:
00:00]} 20. Rd4 {[%emt 0:00:39]} Bb7 {[%emt 0:04:11]} 21. Bb5 {[%emt 0:02:03]}
f6 {[%emt 0:01:21]} 22. h4 {[%emt 0:00:43]} fxg5 {[%emt 0:04:19]} 23. hxg5 {
[%emt 0:00:09]} Kg7 {[%emt 0:00:18]} 24. Rd2 {[%emt 0:06:10]} Rf5 {[%emt 0:00:
00]} 25. Re2 {[%emt 0:01:05]} Raf8 {[%emt 0:01:19]} 26. Nd4 {[%emt 0:02:45]}
Bxd5 {[%emt 0:05:41]} 27. Nxf5+ {[%emt 0:01:15]} Rxf5 {[%emt 0:00:05]} 28. Re7+
{[%emt 0:00:39]} Rf7 {[%emt 0:01:01]} 29. Rxf7+ {[%emt 0:00:38]} Kxf7 {[%emt 0:
00:00]} 30. Rxh7+ {[%emt 0:00:35]} Ke6 {[%emt 0:00:05]} 31. Be2 {[%emt 0:01:28]
} Kf5 {[%emt 0:00:40]} 32. Ra7 {[%emt 0:00:38]} a4 {[%emt 0:00:30]} 33. a3 {
[%emt 0:00:33]} bxa3 {[%emt 0:00:49]} 34. bxa3 {[%emt 0:00:05]} Kxg5 {[%emt 0:
00:00]} 35. Rh7 {[%emt 0:00:45]} Bg8 {[%emt 0:01:01]} 36. Rh8 {[%emt 0:00:35]}
Bd5 {[%emt 0:00:37]} 37. Rd8 {[%emt 0:00:31]} Nb7 {[%emt 0:00:07]} 38. Rh8 {
[%emt 0:00:28]} Kf6 {[%emt 0:00:33]} 39. Kd2 {[%emt 0:00:32]} Na5 {[%emt 0:00:
00]} 40. Rf8+ {[%emt 0:00:26]} Ke5 {[%emt 0:00:33]} 41. Rc8 {[%emt 0:06:21]}
Nb7 {[%emt 0:04:30]} 42. Kc3 {[%emt 0:06:12]} Nc5 {[%emt 0:03:51]} 43. Re8+ {
[%emt 0:04:22]} Kf6 {[%emt 0:04:51]} 44. Rh8 {[%emt 0:03:25]} Ke5 {[%emt 0:00:
00]} 45. Rh6 {[%emt 0:01:49]} Kf6 {[%emt 0:01:17]} 46. Rh1 {[%emt 0:01:30]} Ke5
{[%emt 0:01:08]} 47. Re1 {[%emt 0:00:40]} Kf6 {[%emt 0:00:32]} 48. Kb4 {
[%emt 0:02:32]} Bc6 {[%emt 0:01:22]} 49. Bd1 {[%emt 0:03:03]} Ne6 {[%emt 0:00:
00]} 50. Kc3 {[%emt 0:01:10]} Ng5 {[%emt 0:01:11]} 51. Rf1 {[%emt 0:00:15]} Ke5
{[%emt 0:02:13]} 52. Be2 {[%emt 0:01:49]} Kf6 {[%emt 0:01:13]} 53. Kd2 {
[%emt 0:01:08]} Ke5 {[%emt 0:01:08]} 54. Kc3 {[%emt 0:00:28]} Kf6 {[%emt 0:00:
00]} 55. Kd4 {[%emt 0:00:48]} Ne6+ {[%emt 0:01:19]} 56. Kc3 {[%emt 0:00:25]}
Ng5 {[%emt 0:00:41]} 57. Kd4 {[%emt 0:00:21]} 1/2-1/2

[Event "44th Chess Olympiad Women 2022"]
[Site "Chennai"]
[Date "2022.08.01"]
[Round "4.15"]
[White "Hng, Mei-En Emmanuelle"]
[Black "Repkova, Eva"]
[Result "1/2-1/2"]
[WhiteElo "1997"]
[BlackElo "2303"]
[Annotator "TA"]
[PlyCount "88"]
[EventDate "2022.??.??"]
[TimeControl "60"]

{[%evp 11,88,0,0,-6,0,-21,4,-45,-41,-39,0,0,0,-37,-16,0,-6,-68,-57,-35,-43,-85,
-82,-114,-111,-112,-88,-106,-103,-94,-109,-138,-133,-135,-114,-176,-192,-171,
-173,-189,-177,-212,-190,-418,-208,-464,-461,-448,-402,-441,-383,-411,-318,
-288,-287,-292,-268,-412,-360,-744,-744,-723,-735,-735,-730,-720,-719,-692,
-678,-581,0,0,0,0,0,0,0,0,0]} 1. e4 {[%emt 0:00:13]} e5 {[%emt 0:00:11]} 2. Bc4
{[%emt 0:00:59]} Nc6 {[%emt 0:03:33]} 3. Nf3 {[%emt 0:00:58]} Bc5 {[%emt 0:00:
00]} 4. c3 {[%emt 0:00:44][%cal Yc2c3,Yc3d4]} Nf6 {[%emt 0:06:59]} 5. d4 {
[%emt 0:03:29]} exd4 {[%emt 0:00:09]} 6. cxd4 {[%emt 0:00:26]} Bb4+ {[%emt 0:
00:36]} 7. Nbd2 $1 {[%emt 0:00:22] is more profitable than 7. Bd2 at the
moment. C54: Giuoco Piano: 4 c3 Nf6, main lines with 5 d4 and 5 d3.} Nxe4 {
[%emt 0:03:55]} 8. O-O {[%emt 0:00:52]} Bxd2 {[%emt 0:08:02]} ({Reject} 8... d5
9. Nxe4 O-O 10. Bg5 $11) 9. Bxd2 {[%emt 0:01:06]} (9. Nxd2 $11 {deserves
consideration.} d5 10. Nxe4 dxe4 11. d5) 9... d5 $15 {[%emt 0:00:17]} 10. Bb5 {
[%emt 0:04:34]} O-O {[%emt 0:11:10]} 11. Bxc6 {[%emt 0:02:41]} bxc6 {[%emt 0:
00:03][%cal Yb7c6,Yc6c5,Yc5c4] [#]} 12. Ne5 $146 {[%emt 0:00:00] Prevents Bg4.}
({Predecessor:} 12. Rc1 c5 13. dxc5 Bg4 14. Be3 c6 15. h3 Bxf3 16. Qxf3 Re8 17.
Bd4 Re6 18. Rfd1 {1-0 (37) Okhotnik,V (2418)-Hiermann,D (2272) Braunau 2013})
12... Ba6 {[%emt 0:13:49]} 13. Re1 {[%emt 0:03:38]} c5 $36 {[%emt 0:03:56]
Black has good play.} 14. f3 {[%emt 0:18:03]} (14. dxc5 $11 Qf6 15. Nf3) 14...
Nxd2 {[%emt 0:00:09]} 15. Qxd2 {[%emt 0:00:01]} Qd6 {[%emt 0:07:57]} 16. Rac1 {
[%emt 0:09:44] [#]} c4 {[%emt 0:00:08]} 17. Re3 {[%emt 0:16:30]} f6 {[%emt 0:
12:38]} 18. Ng4 {[%emt 0:01:53]} Rab8 {[%emt 0:00:00]} 19. b3 {[%emt 0:06:18]}
h5 {[%emt 0:04:25]} 20. Nf2 {[%emt 0:01:01]} Rfe8 {[%emt 0:00:42]} 21. Nh3 {
[%emt 0:05:49][%cal Yh3f4]} Rxe3 {[%emt 0:02:32]} 22. Qxe3 {[%emt 0:00:03]} Bb5
{[%emt 0:00:20]} 23. Nf4 {[%emt 0:03:43]} (23. bxc4 $17 {is a better defense.}
Bxc4 24. a4) 23... Re8 $19 {[%emt 0:00:09]} 24. Qd2 {[%emt 0:00:17]} h4 {
[%emt 0:01:23]} 25. a4 {[%emt 0:05:53]} Ba6 {[%emt 0:00:00]} 26. bxc4 {[%emt 0:
01:46]} Bxc4 {[%emt 0:00:53][%cal Ya7a5]} 27. g3 $2 {[%emt 0:05:07]} (27. h3 {
was worth a try.}) 27... hxg3 {[%emt 0:00:28]} (27... g5 $142 28. Nd3 hxg3) 28.
hxg3 $2 {[%emt 0:00:02]} (28. h4) 28... g5 {[%emt 0:00:00][%cal Yg7g5,Yg5f4,
Yf4e3]} 29. Nh5 {[%emt 0:00:24]} Re2 {[%emt 0:00:00]} 30. Qc3 {[%emt 0:03:18]}
Qe6 {[%emt 0:01:29]} 31. g4 {[%emt 0:02:08]} Qd6 {[%emt 0:03:35] Inhibits Ng3.}
32. f4 {[%emt 0:00:23]} gxf4 {[%emt 0:00:06][%cal Yf4f3]} 33. Qf3 {[%emt 0:00:
15][%cal Yc1c4]} Re3 {[%emt 0:00:12]} 34. Qf2 {[%emt 0:01:39]} (34. Qxf4 $142
Qxf4 35. Nxf4) 34... Kf7 {[%emt 0:00:51]} 35. Re1 $2 {[%emt 0:01:32]} (35. Nxf4
Re4 36. Ng2) 35... Qe6 {[%emt 0:01:01][%csl Ye1,Yg4]} 36. Rxe3 {[%emt 0:00:20]}
fxe3 {[%emt 0:02:02] Endgame KQB-KQN} 37. Qf4 {[%emt 0:00:15]} Kg6 {[%emt 0:04:
07] [#] ( -> ...e2)} 38. Qg3 {[%emt 0:00:51]} Qe4 {[%emt 0:00:16]} 39. Nf4+ {
[%emt 0:00:57]} Kf7 {[%emt 0:00:00]} 40. Ng2 {[%emt 0:00:28]} Qxd4 $2 {[%emt 0:
02:35]} (40... e2 $19 41. Qxc7+ Kg6) 41. Qxc7+ $11 {[%emt 0:06:20] The
position is equal.} Kf8 {[%emt 0:00:00] White must now prevent ...e2+.} (41...
Ke8 $5 42. Qc8+ Kf7 43. Qd7+ Kg8 44. Qe8+ Kg7 45. Qe7+ Kh8 46. Qe8+ Kh7 47.
Qf7+ Kh8 48. Qf8+ Kh7 49. Qf7+ Kh8 50. Qf8+ Kh7 51. Qf7+ $11) 42. Qd8+ {
[%emt 0:02:36]} Kf7 {[%emt 0:00:09] And now ...e2+ would win.} 43. Qc7+ {
[%emt 0:00:25]} Kg8 {[%emt 0:00:57] ...e2+ is the strong threat.} 44. Qd8+ {
[%emt 0:00:26]} Kg7 {[%emt 0:02:14] Weighted Error Value: White=0.47/Black=0.
28 (precise)} 1/2-1/2